[Event "Titled Tuesday Blitz October 18 Late 2022"]
[White "Sabar, Ethmane Daouda"]
[Black "Bettalli, Francesco"]
[WhiteFideId "19600097"]
[BlackFideId "2816453"]
[WhiteElo "1950"]
[BlackElo "2216"]
[Result "0-1"]
[Round "08"]
[TimeControl "180+1"]
[Date "2022.10.19"]
[WhiteClock "0:00:12"]
[BlackClock "0:01:45"]

1. b3 {[%clk 0:02:56]}  e5 {[%clk 0:02:51]} 2. Bb2 {[%clk 0:02:54]}  d6 {[%clk 0:02:52]} 3. e3 {[%clk 0:02:53]}  Nd7 {[%clk 0:02:53]} 4. d4 {[%clk 0:02:53]}  g6 {[%clk 0:02:53]} 5. dxe5 {[%clk 0:02:52]}  Bg7 {[%clk 0:02:54]} 6. Nf3 {[%clk 0:02:49]}  Nxe5 {[%clk 0:02:54]} 7. Nxe5 {[%clk 0:02:49]}  Bxe5 {[%clk 0:02:55]} 8. Bxe5 {[%clk 0:02:48]}  dxe5 {[%clk 0:02:56]} 9. Qxd8+ {[%clk 0:02:48]}  Kxd8 {[%clk 0:02:57]} 10. Bc4 {[%clk 0:02:47]}  Ke7 {[%clk 0:02:53]} 11. Nc3 {[%clk 0:02:48]}  c6 {[%clk 0:02:53]} 12. a4 {[%clk 0:02:43]}  f6 {[%clk 0:02:53]} 13. O-O-O {[%clk 0:02:39]}  a5 {[%clk 0:02:53]} 14. Rd2 {[%clk 0:02:35]}  Nh6 {[%clk 0:02:51]} 15. f3 {[%clk 0:02:28]}  Rd8 {[%clk 0:02:47]} 16. Rxd8 {[%clk 0:02:24]}  Kxd8 {[%clk 0:02:48]} 17. Rd1+ {[%clk 0:02:22]}  Ke7 {[%clk 0:02:47]} 18. Kd2 {[%clk 0:02:13]}  Nf5 {[%clk 0:02:46]} 19. Ke2 {[%clk 0:02:13]}  Nd6 {[%clk 0:02:44]} 20. Bd3 {[%clk 0:01:50]}  Be6 {[%clk 0:02:43]} 21. e4 {[%clk 0:01:45]}  Rd8 {[%clk 0:02:42]} 22. Ke3 {[%clk 0:01:21]}  b6 {[%clk 0:02:34]} 23. g3 {[%clk 0:01:15]}  Nf7 {[%clk 0:02:28]} 24. f4 {[%clk 0:01:13]}  Rd4 {[%clk 0:02:27]} 25. Ne2 {[%clk 0:01:11]}  Rd7 {[%clk 0:02:24]} 26. c4 {[%clk 0:01:09]}  Bg4 {[%clk 0:02:23]} 27. Bc2 {[%clk 0:01:07]}  Rxd1 {[%clk 0:02:16]} 28. Bxd1 {[%clk 0:01:08]}  Bxe2 {[%clk 0:02:13]} 29. Bxe2 {[%clk 0:01:09]}  Nd8 {[%clk 0:02:12]} 30. Bd1 {[%clk 0:01:04]}  Ne6 {[%clk 0:02:10]} 31. Bg4 {[%clk 0:00:46]}  Nd4 {[%clk 0:02:07]} 32. Bd1 {[%clk 0:00:46]}  Kd6 {[%clk 0:02:06]} 33. Kd3 {[%clk 0:00:43]}  Kc5 {[%clk 0:02:06]} 34. Kc3 {[%clk 0:00:42]}  b5 {[%clk 0:02:04]} 35. cxb5 {[%clk 0:00:42]}  cxb5 {[%clk 0:02:05]} 36. h3 {[%clk 0:00:36]}  Ne6 {[%clk 0:01:59]} 37. fxe5 {[%clk 0:00:34]}  fxe5 {[%clk 0:02:00]} 38. h4 {[%clk 0:00:33]}  h6 {[%clk 0:01:58]} 39. Bg4 {[%clk 0:00:32]}  Nd4 {[%clk 0:01:57]} 40. Bd1 {[%clk 0:00:33]}  g5 {[%clk 0:01:57]} 41. hxg5 {[%clk 0:00:31]}  hxg5 {[%clk 0:01:58]} 42. g4 {[%clk 0:00:23]}  Ne6 {[%clk 0:01:57]} 43. Bf3 {[%clk 0:00:20]}  Nf4 {[%clk 0:01:56]} 44. Bd1 {[%clk 0:00:20]}  Nh3 {[%clk 0:01:55]} 45. Bf3 {[%clk 0:00:20]}  Nf2 {[%clk 0:01:55]} 46. axb5 {[%clk 0:00:18]}  Kxb5 {[%clk 0:01:56]} 47. Be2+ {[%clk 0:00:16]}  Kc5 {[%clk 0:01:52]} 48. Bf3 {[%clk 0:00:17]}  Nh3 {[%clk 0:01:50]} 49. Bg2 {[%clk 0:00:15]}  Nf4 {[%clk 0:01:47]} 50. Bf3 {[%clk 0:00:16]}  Ne6 {[%clk 0:01:46]} 51. Be2 {[%clk 0:00:15]}  Nd4 {[%clk 0:01:47]} 52. Bd1 {[%clk 0:00:15]}  Nb5+ {[%clk 0:01:47]} 53. Kb2 {[%clk 0:00:12]}  Kb4 {[%clk 0:01:48]} 54. Be2 {[%clk 0:00:12]}  Nd4 {[%clk 0:01:47]} 55. Bd1 {[%clk 0:00:12]}  Ne6 {[%clk 0:01:48]} 56. Bf3 {[%clk 0:00:12]}  Nc5 {[%clk 0:01:48]} 57. Bd1 {[%clk 0:00:13]}  Nxe4 {[%clk 0:01:48]} 58. Bf3 {[%clk 0:00:13]}  Nf6 {[%clk 0:01:44]} 59. Kc2 {[%clk 0:00:12]}  e4 {[%clk 0:01:45]} 60. Be2 {[%clk 0:00:12]}  Nd5 {[%clk 0:01:44]} 61. Ba6 {[%clk 0:00:11]}  Ne3+ {[%clk 0:01:40]} 62. Kb2 {[%clk 0:00:10]}  Nxg4 {[%clk 0:01:41]} 63. Be2 {[%clk 0:00:09]}  Ne5 {[%clk 0:01:42]} 64. Kc2 {[%clk 0:00:09]}  g4 {[%clk 0:01:43]} 65. Bf1 {[%clk 0:00:09]}  g3 {[%clk 0:01:43]} 66. Bg2 {[%clk 0:00:07]}  Nf3 {[%clk 0:01:42]} 67. Kb2 {[%clk 0:00:06]}  Ne1 {[%clk 0:01:38]} 68. Bxe4 {[%clk 0:00:04]}  g2 {[%clk 0:01:39]} 69. Bxg2 {[%clk 0:00:04]}  Nxg2 {[%clk 0:01:40]} 70. Kc2 {[%clk 0:00:04]}  Nf4 {[%clk 0:01:41]} 71. Kb2 {[%clk 0:00:05]}  Nd3+ {[%clk 0:01:41]} 72. Ka2 {[%clk 0:00:06]}  Nc5 {[%clk 0:01:42]} 73. Ka1 {[%clk 0:00:07]}  Nxb3+ {[%clk 0:01:42]} 74. Ka2 {[%clk 0:00:07]}  Nc5 {[%clk 0:01:43]} 75. Ka1 {[%clk 0:00:08]}  a4 {[%clk 0:01:43]} 76. Ka2 {[%clk 0:00:09]}  a3 {[%clk 0:01:44]} 77. Ka1 {[%clk 0:00:10]}  Kb3 {[%clk 0:01:44]} 78. Kb1 {[%clk 0:00:10]}  Na6 {[%clk 0:01:45]} 79. Ka1 {[%clk 0:00:11]}  Nb4 {[%clk 0:01:45]} 80. Kb1 {[%clk 0:00:11]}  a2+ {[%clk 0:01:45]} 81. Ka1 {[%clk 0:00:12]}  Nc2# {[%clk 0:01:45]} 0-1


[Site "https://www.chess.com"]

[Event "Titled Tuesday Blitz October 18 Late 2022"]
[White "Shuvalov, Evgenij"]
[Black "Ovezdurdyyeva, Jemal"]
[WhiteFideId "4187237"]
[BlackFideId "14001888"]
[WhiteElo "2049"]
[BlackElo "1961"]
[Result "0-1"]
[Round "08"]
[TimeControl "180+1"]
[Date "2022.10.19"]
[WhiteClock "0:00:16"]
[BlackClock "0:00:18"]

1. d4 {[%clk 0:03:00]}  Nf6 {[%clk 0:02:59]} 2. c4 {[%clk 0:03:00]}  e6 {[%clk 0:02:57]} 3. Nf3 {[%clk 0:02:59]}  b6 {[%clk 0:02:57]} 4. g3 {[%clk 0:02:59]}  Bb7 {[%clk 0:02:57]} 5. Bg2 {[%clk 0:02:59]}  Be7 {[%clk 0:02:57]} 6. O-O {[%clk 0:02:59]}  O-O {[%clk 0:02:57]} 7. Nc3 {[%clk 0:02:58]}  d5 {[%clk 0:02:51]} 8. Ne5 {[%clk 0:02:56]}  c6 {[%clk 0:02:42]} 9. Bf4 {[%clk 0:02:54]}  Nbd7 {[%clk 0:02:39]} 10. Rc1 {[%clk 0:02:49]}  Nxe5 {[%clk 0:02:38]} 11. Bxe5 {[%clk 0:02:46]}  dxc4 {[%clk 0:02:32]} 12. Ne4 {[%clk 0:02:25]}  Nxe4 {[%clk 0:02:26]} 13. Bxe4 {[%clk 0:02:25]}  b5 {[%clk 0:02:26]} 14. b3 {[%clk 0:02:23]}  cxb3 {[%clk 0:02:25]} 15. Qxb3 {[%clk 0:02:23]}  Rc8 {[%clk 0:02:25]} 16. Rc2 {[%clk 0:02:15]}  Bf6 {[%clk 0:02:10]} 17. Rfc1 {[%clk 0:02:09]}  Bxe5 {[%clk 0:02:09]} 18. dxe5 {[%clk 0:02:10]}  Qc7 {[%clk 0:02:04]} 19. Qe3 {[%clk 0:02:02]}  g6 {[%clk 0:01:56]} 20. Qc5 {[%clk 0:01:57]}  Qa5 {[%clk 0:01:36]} 21. h4 {[%clk 0:01:50]}  Qa4 {[%clk 0:01:25]} 22. Bf3 {[%clk 0:01:45]}  h5 {[%clk 0:01:21]} 23. Rc3 {[%clk 0:01:42]}  b4 {[%clk 0:01:16]} 24. Rc4 {[%clk 0:01:40]}  a5 {[%clk 0:01:13]} 25. g4 {[%clk 0:01:35]}  Qxa2 {[%clk 0:00:41]} 26. gxh5 {[%clk 0:01:31]}  b3 {[%clk 0:00:41]} 27. hxg6 {[%clk 0:01:26]}  b2 {[%clk 0:00:40]} 28. gxf7+ {[%clk 0:01:25]}  Rxf7 {[%clk 0:00:40]} 29. Rg4+ {[%clk 0:01:24]}  Kh8 {[%clk 0:00:38]} 30. Qe3 {[%clk 0:01:13]}  bxc1=Q+ {[%clk 0:00:36]} 31. Qxc1 {[%clk 0:01:13]}  Rh7 {[%clk 0:00:21]} 32. Qg5 {[%clk 0:01:09]}  Qb1+ {[%clk 0:00:20]} 33. Kg2 {[%clk 0:01:08]}  Qf5 {[%clk 0:00:21]} 34. Qe3 {[%clk 0:01:01]}  Rg8 {[%clk 0:00:20]} 35. Rxg8+ {[%clk 0:00:55]}  Kxg8 {[%clk 0:00:20]} 36. Qa7 {[%clk 0:00:50]}  Rg7+ {[%clk 0:00:20]} 37. Kh2 {[%clk 0:00:43]}  Qxe5+ {[%clk 0:00:20]} 38. Kh3 {[%clk 0:00:42]}  Qf5+ {[%clk 0:00:20]} 39. Kh2 {[%clk 0:00:42]}  Qf4+ {[%clk 0:00:20]} 40. Kh3 {[%clk 0:00:41]}  Qf5+ {[%clk 0:00:18]} 41. Kh2 {[%clk 0:00:42]}  e5 {[%clk 0:00:19]} 42. Qxa5 {[%clk 0:00:24]}  Qf4+ {[%clk 0:00:17]} 43. Kh3 {[%clk 0:00:16]}  Bc8+ {[%clk 0:00:17]} 44. Bg4 {[%clk 0:00:15]}  Qxg4+ {[%clk 0:00:18]} 45. Kh2 {[%clk 0:00:16]}  Qg2# {[%clk 0:00:18]} 0-1


[Site "https://www.chess.com"]

[Event "Titled Tuesday Blitz October 18 Late 2022"]
[White "Souleidis, Georgios"]
[Black "Thiel, Thomas"]
[WhiteFideId "4206827"]
[BlackFideId "4615964"]
[WhiteElo "2401"]
[BlackElo "2264"]
[Result "1-0"]
[Round "08"]
[TimeControl "180+1"]
[Date "2022.10.19"]
[WhiteClock "0:00:04"]
[BlackClock "0:00:12"]

1. e4 {[%clk 0:03:00]}  d5 {[%clk 0:02:59]} 2. exd5 {[%clk 0:03:00]}  Nf6 {[%clk 0:02:59]} 3. d4 {[%clk 0:03:00]}  Nxd5 {[%clk 0:02:59]} 4. c4 {[%clk 0:02:59]}  Nb6 {[%clk 0:02:58]} 5. Nf3 {[%clk 0:02:57]}  g6 {[%clk 0:02:57]} 6. c5 {[%clk 0:02:56]}  Nd5 {[%clk 0:02:55]} 7. Nc3 {[%clk 0:02:56]}  Bg7 {[%clk 0:02:55]} 8. Bc4 {[%clk 0:02:54]}  Nxc3 {[%clk 0:02:55]} 9. bxc3 {[%clk 0:02:55]}  O-O {[%clk 0:02:54]} 10. O-O {[%clk 0:02:53]}  Nc6 {[%clk 0:02:54]} 11. h3 {[%clk 0:02:43]}  e5 {[%clk 0:02:49]} 12. Bg5 {[%clk 0:02:30]}  Qd7 {[%clk 0:02:47]} 13. Bb5 {[%clk 0:02:03]}  exd4 {[%clk 0:02:43]} 14. cxd4 {[%clk 0:02:03]}  Qd5 {[%clk 0:02:35]} 15. Be3 {[%clk 0:01:58]}  Bf5 {[%clk 0:02:08]} 16. Qa4 {[%clk 0:01:44]}  Bxh3 {[%clk 0:02:01]} 17. Bc4 {[%clk 0:01:35]}  Qf5 {[%clk 0:02:00]} 18. Be2 {[%clk 0:01:10]}  Bg4 {[%clk 0:01:55]} 19. Rfd1 {[%clk 0:01:08]}  Qh5 {[%clk 0:01:43]} 20. Rab1 {[%clk 0:01:01]}  Rab8 {[%clk 0:01:42]} 21. Rd2 {[%clk 0:00:46]}  Rfe8 {[%clk 0:01:32]} 22. d5 {[%clk 0:00:37]}  Ne5 {[%clk 0:01:24]} 23. Nxe5 {[%clk 0:00:37]}  Bxe2 {[%clk 0:01:24]} 24. Nd7 {[%clk 0:00:25]}  Rbd8 {[%clk 0:01:13]} 25. Rxb7 {[%clk 0:00:24]}  Qg4 {[%clk 0:01:01]} 26. Qxg4 {[%clk 0:00:20]}  Bxg4 {[%clk 0:01:00]} 27. c6 {[%clk 0:00:18]}  Bxd7 {[%clk 0:00:59]} 28. cxd7 {[%clk 0:00:19]}  Rxd7 {[%clk 0:00:59]} 29. Rxa7 {[%clk 0:00:19]}  Be5 {[%clk 0:00:54]} 30. Kf1 {[%clk 0:00:18]}  Bd6 {[%clk 0:00:52]} 31. a4 {[%clk 0:00:16]}  Rde7 {[%clk 0:00:48]} 32. a5 {[%clk 0:00:15]}  Re4 {[%clk 0:00:48]} 33. Ra2 {[%clk 0:00:14]}  f5 {[%clk 0:00:42]} 34. g3 {[%clk 0:00:05]}  Bxg3 {[%clk 0:00:38]} 35. fxg3 {[%clk 0:00:05]}  Rxe3 {[%clk 0:00:37]} 36. Rxc7 {[%clk 0:00:05]}  Rxg3 {[%clk 0:00:18]} 37. a6 {[%clk 0:00:06]}  Ra8 {[%clk 0:00:17]} 38. a7 {[%clk 0:00:06]}  Rf3+ {[%clk 0:00:14]} 39. Ke2 {[%clk 0:00:05]}  Rf4 {[%clk 0:00:13]} 40. Rb7 {[%clk 0:00:05]}  Rd4 {[%clk 0:00:12]} 41. Rb8+ {[%clk 0:00:04]} 1-0


[Site "https://www.chess.com"]

[Event "Titled Tuesday Blitz October 18 Late 2022"]
[White "Tan, Ralph"]
[Black "Sargsyan, Anna M."]
[WhiteFideId "30966590"]
[BlackFideId "13308130"]
[WhiteElo "2488"]
[BlackElo "2616"]
[Result "1-0"]
[Round "08"]
[TimeControl "180+1"]
[Date "2022.10.19"]
[WhiteClock "0:00:27"]
[BlackClock "0:00:14"]

1. Nf3 {[%clk 0:03:00]}  d5 {[%clk 0:02:59]} 2. g3 {[%clk 0:03:00]}  Nf6 {[%clk 0:03:00]} 3. Bg2 {[%clk 0:03:00]}  g6 {[%clk 0:02:57]} 4. O-O {[%clk 0:03:00]}  Bg7 {[%clk 0:02:58]} 5. d4 {[%clk 0:03:01]}  O-O {[%clk 0:02:58]} 6. c4 {[%clk 0:03:02]}  c6 {[%clk 0:02:58]} 7. Nbd2 {[%clk 0:03:02]}  Re8 {[%clk 0:02:52]} 8. b3 {[%clk 0:03:02]}  dxc4 {[%clk 0:02:49]} 9. bxc4 {[%clk 0:02:55]}  c5 {[%clk 0:02:49]} 10. e3 {[%clk 0:02:50]}  cxd4 {[%clk 0:02:49]} 11. exd4 {[%clk 0:02:50]}  Nc6 {[%clk 0:02:48]} 12. Bb2 {[%clk 0:02:50]}  Bf5 {[%clk 0:02:44]} 13. Nb3 {[%clk 0:02:48]}  Rc8 {[%clk 0:02:43]} 14. Rc1 {[%clk 0:02:47]}  b6 {[%clk 0:02:43]} 15. d5 {[%clk 0:02:35]}  Nb4 {[%clk 0:02:34]} 16. Nfd4 {[%clk 0:02:34]}  Bg4 {[%clk 0:02:32]} 17. f3 {[%clk 0:02:31]}  Bd7 {[%clk 0:02:31]} 18. a3 {[%clk 0:02:11]}  Na6 {[%clk 0:02:29]} 19. f4 {[%clk 0:02:04]}  Nc5 {[%clk 0:02:28]} 20. Nxc5 {[%clk 0:02:02]}  Rxc5 {[%clk 0:02:18]} 21. Nb3 {[%clk 0:01:50]}  Ba4 {[%clk 0:02:11]} 22. Qd3 {[%clk 0:01:47]}  Rc7 {[%clk 0:01:56]} 23. Be5 {[%clk 0:01:40]}  Rc8 {[%clk 0:01:55]} 24. Nd4 {[%clk 0:01:37]}  Nd7 {[%clk 0:01:40]} 25. Bxg7 {[%clk 0:01:36]}  Kxg7 {[%clk 0:01:41]} 26. f5 {[%clk 0:00:54]}  Nc5 {[%clk 0:01:28]} 27. Qe3 {[%clk 0:00:50]}  Qd6 {[%clk 0:01:17]} 28. fxg6 {[%clk 0:00:46]}  hxg6 {[%clk 0:01:13]} 29. Bh3 {[%clk 0:00:42]}  Bd7 {[%clk 0:01:05]} 30. Bg2 {[%clk 0:00:27]}  e5 {[%clk 0:00:57]} 31. Nf3 {[%clk 0:00:19]}  f6 {[%clk 0:00:33]} 32. Nh4 {[%clk 0:00:18]}  Na4 {[%clk 0:00:30]} 33. Be4 {[%clk 0:00:16]}  Qc5 {[%clk 0:00:20]} 34. Qxc5 {[%clk 0:00:15]}  Rxc5 {[%clk 0:00:17]} 35. Bxg6 {[%clk 0:00:16]}  Rec8 {[%clk 0:00:17]} 36. Bf5 {[%clk 0:00:16]}  Bxf5 {[%clk 0:00:11]} 37. Nxf5+ {[%clk 0:00:17]}  Kh7 {[%clk 0:00:10]} 38. Nd6 {[%clk 0:00:17]}  R8c7 {[%clk 0:00:06]} 39. Rxf6 {[%clk 0:00:17]}  Nb2 {[%clk 0:00:06]} 40. Rcf1 {[%clk 0:00:17]}  Nxc4 {[%clk 0:00:05]} 41. Ne8 {[%clk 0:00:17]}  Re7 {[%clk 0:00:04]} 42. Rf8 {[%clk 0:00:17]}  Rf7 {[%clk 0:00:05]} 43. R8xf7+ {[%clk 0:00:17]}  Kg6 {[%clk 0:00:03]} 44. R1f6+ {[%clk 0:00:17]}  Kg5 {[%clk 0:00:04]} 45. Rg7+ {[%clk 0:00:17]}  Kh5 {[%clk 0:00:04]} 46. Rf5+ {[%clk 0:00:17]}  Kh6 {[%clk 0:00:04]} 47. Rg4 {[%clk 0:00:16]}  Ne3 {[%clk 0:00:03]} 48. Rf6+ {[%clk 0:00:16]}  Kh5 {[%clk 0:00:02]} 49. Rh4+ {[%clk 0:00:16]}  Kg5 {[%clk 0:00:02]} 50. Kf2 {[%clk 0:00:13]}  Ng4+ {[%clk 0:00:02]} 51. Rxg4+ {[%clk 0:00:12]}  Kxg4 {[%clk 0:00:02]} 52. d6 {[%clk 0:00:13]}  Rc2+ {[%clk 0:00:02]} 53. Ke3 {[%clk 0:00:13]}  Rc3+ {[%clk 0:00:02]} 54. Ke4 {[%clk 0:00:13]}  Rc4+ {[%clk 0:00:02]} 55. Kxe5 {[%clk 0:00:14]}  Rc5+ {[%clk 0:00:03]} 56. Ke6 {[%clk 0:00:14]}  Rc6 {[%clk 0:00:03]} 57. Kd7 {[%clk 0:00:14]}  Rc2 {[%clk 0:00:03]} 58. Nc7 {[%clk 0:00:15]}  Rxh2 {[%clk 0:00:04]} 59. Rg6+ {[%clk 0:00:14]}  Kf5 {[%clk 0:00:04]} 60. Rg8 {[%clk 0:00:15]}  Rd2 {[%clk 0:00:04]} 61. Kc6 {[%clk 0:00:16]}  Ke5 {[%clk 0:00:04]} 62. d7 {[%clk 0:00:16]}  Rc2+ {[%clk 0:00:05]} 63. Kb7 {[%clk 0:00:16]}  Rd2 {[%clk 0:00:05]} 64. d8=Q {[%clk 0:00:17]}  Rxd8 {[%clk 0:00:05]} 65. Rxd8 {[%clk 0:00:18]}  Kf5 {[%clk 0:00:06]} 66. Kxa7 {[%clk 0:00:18]}  Kg4 {[%clk 0:00:06]} 67. Kxb6 {[%clk 0:00:19]}  Kxg3 {[%clk 0:00:07]} 68. a4 {[%clk 0:00:20]}  Kf4 {[%clk 0:00:08]} 69. a5 {[%clk 0:00:21]}  Ke5 {[%clk 0:00:09]} 70. a6 {[%clk 0:00:22]}  Kf6 {[%clk 0:00:09]} 71. Rb8 {[%clk 0:00:23]}  Ke7 {[%clk 0:00:10]} 72. a7 {[%clk 0:00:23]}  Kf7 {[%clk 0:00:11]} 73. a8=Q {[%clk 0:00:24]}  Kg7 {[%clk 0:00:11]} 74. Na6 {[%clk 0:00:25]}  Kg6 {[%clk 0:00:12]} 75. Qb7 {[%clk 0:00:26]}  Kf6 {[%clk 0:00:13]} 76. Rc8 {[%clk 0:00:27]}  Kf5 {[%clk 0:00:14]} 77. Qb8 {[%clk 0:00:27]}  Ke6 {[%clk 0:00:14]} 78. Rc6+ {[%clk 0:00:28]}  Kf7 {[%clk 0:00:15]} 79. Qd6 {[%clk 0:00:28]}  Ke8 {[%clk 0:00:15]} 80. Nc7+ {[%clk 0:00:27]}  Kf7 {[%clk 0:00:15]} 81. Qe6+ {[%clk 0:00:27]}  Kg7 {[%clk 0:00:15]} 82. Rc2 {[%clk 0:00:26]}  Kf8 {[%clk 0:00:14]} 83. Rf2+ {[%clk 0:00:26]}  Kg7 {[%clk 0:00:14]} 84. Qg4+ {[%clk 0:00:27]} 1-0


[Site "https://www.chess.com"]

[Event "Titled Tuesday Blitz October 18 Late 2022"]
[White "Ter-Sahakyan, Samvel"]
[Black "Papasimakopoulos, Alexandros"]
[WhiteFideId "13302531"]
[BlackFideId "4244125"]
[WhiteElo "2604"]
[BlackElo "2357"]
[Result "1-0"]
[Round "08"]
[TimeControl "180+1"]
[Date "2022.10.18"]
[WhiteClock "0:00:56"]
[BlackClock "0:01:39"]

1. e4 {[%clk 0:02:59]}  e6 {[%clk 0:02:52]} 2. d4 {[%clk 0:02:59]}  d5 {[%clk 0:02:52]} 3. e5 {[%clk 0:02:58]}  b6 {[%clk 0:02:49]} 4. Nf3 {[%clk 0:02:52]}  Ne7 {[%clk 0:02:49]} 5. Bd3 {[%clk 0:02:49]}  Ba6 {[%clk 0:02:48]} 6. Bxa6 {[%clk 0:02:48]}  Nxa6 {[%clk 0:02:49]} 7. O-O {[%clk 0:02:48]}  Qd7 {[%clk 0:02:47]} 8. Re1 {[%clk 0:02:42]}  Nf5 {[%clk 0:02:45]} 9. c3 {[%clk 0:02:34]}  h5 {[%clk 0:02:44]} 10. Nbd2 {[%clk 0:02:33]}  c5 {[%clk 0:02:41]} 11. Nf1 {[%clk 0:02:33]}  cxd4 {[%clk 0:02:41]} 12. cxd4 {[%clk 0:02:33]}  Nb4 {[%clk 0:02:34]} 13. Ne3 {[%clk 0:02:27]}  g6 {[%clk 0:02:25]} 14. Nxf5 {[%clk 0:02:23]}  gxf5 {[%clk 0:02:26]} 15. Bg5 {[%clk 0:02:18]}  Be7 {[%clk 0:02:21]} 16. h4 {[%clk 0:02:12]}  Nc6 {[%clk 0:02:06]} 17. Rc1 {[%clk 0:02:11]}  Rc8 {[%clk 0:02:06]} 18. Re3 {[%clk 0:02:03]}  Bxg5 {[%clk 0:01:58]} 19. Nxg5 {[%clk 0:02:02]}  Ne7 {[%clk 0:01:57]} 20. Rxc8+ {[%clk 0:01:58]}  Qxc8 {[%clk 0:01:56]} 21. Rc3 {[%clk 0:01:54]}  Qd7 {[%clk 0:01:56]} 22. Qc2 {[%clk 0:01:50]}  Kf8 {[%clk 0:01:55]} 23. Rc7 {[%clk 0:01:44]}  Qb5 {[%clk 0:01:55]} 24. a4 {[%clk 0:01:39]}  Qb4 {[%clk 0:01:53]} 25. Rxa7 {[%clk 0:01:23]}  Kg7 {[%clk 0:01:44]} 26. Qc3 {[%clk 0:01:20]}  Qxc3 {[%clk 0:01:38]} 27. bxc3 {[%clk 0:01:21]}  Re8 {[%clk 0:01:36]} 28. Rb7 {[%clk 0:01:17]}  Kf8 {[%clk 0:01:35]} 29. Nh7+ {[%clk 0:01:17]}  Kg7 {[%clk 0:01:35]} 30. Nf6 {[%clk 0:01:17]}  Ra8 {[%clk 0:01:35]} 31. Rxe7 {[%clk 0:01:14]}  Rxa4 {[%clk 0:01:36]} 32. Nxh5+ {[%clk 0:01:10]}  Kg6 {[%clk 0:01:36]} 33. Nf4+ {[%clk 0:01:05]}  Kh6 {[%clk 0:01:36]} 34. Rxf7 {[%clk 0:01:04]}  Ra1+ {[%clk 0:01:37]} 35. Kh2 {[%clk 0:01:04]}  Rc1 {[%clk 0:01:38]} 36. Rf6+ {[%clk 0:01:03]}  Kg7 {[%clk 0:01:38]} 37. Rxe6 {[%clk 0:01:03]}  Rxc3 {[%clk 0:01:39]} 38. Rxb6 {[%clk 0:01:03]}  Rc4 {[%clk 0:01:39]} 39. h5 {[%clk 0:00:56]} 1-0


[Site "https://www.chess.com"]

[Event "Titled Tuesday Blitz October 18 Late 2022"]
[White "Thomforde-Toates, Noah"]
[Black "Pakleza, Zbigniew"]
[WhiteFideId "30951992"]
[BlackFideId "1119290"]
[WhiteElo "2674"]
[BlackElo "2411"]
[Result "1-0"]
[Round "08"]
[TimeControl "180+1"]
[Date "2022.10.18"]
[WhiteClock "0:00:15"]
[BlackClock "0:00:04"]

1. d4 {[%clk 0:03:00]}  d6 {[%clk 0:03:00]} 2. Nc3 {[%clk 0:03:00]}  Nf6 {[%clk 0:02:57]} 3. e4 {[%clk 0:03:00]}  c6 {[%clk 0:02:57]} 4. a4 {[%clk 0:02:59]}  Nbd7 {[%clk 0:02:57]} 5. Nf3 {[%clk 0:02:58]}  e5 {[%clk 0:02:57]} 6. h3 {[%clk 0:02:57]}  Be7 {[%clk 0:02:56]} 7. Bc4 {[%clk 0:02:56]}  O-O {[%clk 0:02:56]} 8. Bb3 {[%clk 0:02:55]}  exd4 {[%clk 0:02:54]} 9. Qxd4 {[%clk 0:02:48]}  Nc5 {[%clk 0:02:55]} 10. Ba2 {[%clk 0:02:40]}  Re8 {[%clk 0:02:47]} 11. O-O {[%clk 0:02:39]}  Be6 {[%clk 0:02:43]} 12. Bxe6 {[%clk 0:02:28]}  Nxe6 {[%clk 0:02:44]} 13. Qb4 {[%clk 0:02:17]}  Qc7 {[%clk 0:02:30]} 14. Qc4 {[%clk 0:02:11]}  Rad8 {[%clk 0:02:26]} 15. Ng5 {[%clk 0:02:02]}  Bf8 {[%clk 0:02:13]} 16. Nxe6 {[%clk 0:02:00]}  Rxe6 {[%clk 0:02:14]} 17. Bg5 {[%clk 0:02:00]}  Rde8 {[%clk 0:02:11]} 18. Bxf6 {[%clk 0:01:59]}  Rxf6 {[%clk 0:02:11]} 19. Nd5 {[%clk 0:01:59]}  Qd8 {[%clk 0:02:05]} 20. Nxf6+ {[%clk 0:01:58]}  Qxf6 {[%clk 0:02:06]} 21. c3 {[%clk 0:01:57]}  h5 {[%clk 0:01:58]} 22. Rfe1 {[%clk 0:01:51]}  h4 {[%clk 0:01:55]} 23. Qd4 {[%clk 0:01:51]}  Qf4 {[%clk 0:01:43]} 24. e5 {[%clk 0:01:31]}  Qxd4 {[%clk 0:01:11]} 25. cxd4 {[%clk 0:01:32]}  Rd8 {[%clk 0:01:01]} 26. exd6 {[%clk 0:01:26]}  Rxd6 {[%clk 0:00:57]} 27. Re8 {[%clk 0:01:20]}  g5 {[%clk 0:00:50]} 28. Rd1 {[%clk 0:01:06]}  Kg7 {[%clk 0:00:48]} 29. Re5 {[%clk 0:00:46]}  f6 {[%clk 0:00:47]} 30. Re4 {[%clk 0:00:43]}  Rd5 {[%clk 0:00:41]} 31. Kf1 {[%clk 0:00:39]}  a5 {[%clk 0:00:37]} 32. Ke2 {[%clk 0:00:39]}  Kg6 {[%clk 0:00:36]} 33. Kd3 {[%clk 0:00:38]}  Bd6 {[%clk 0:00:31]} 34. Kc4 {[%clk 0:00:36]}  Kf7 {[%clk 0:00:28]} 35. Rde1 {[%clk 0:00:32]}  b5+ {[%clk 0:00:27]} 36. axb5 {[%clk 0:00:32]}  Rxb5 {[%clk 0:00:28]} 37. R1e2 {[%clk 0:00:30]}  Rb4+ {[%clk 0:00:26]} 38. Kc3 {[%clk 0:00:30]}  a4 {[%clk 0:00:25]} 39. Re6 {[%clk 0:00:29]}  Rb3+ {[%clk 0:00:24]} 40. Kc2 {[%clk 0:00:28]}  Be5 {[%clk 0:00:20]} 41. Rxc6 {[%clk 0:00:25]}  Bxd4 {[%clk 0:00:20]} 42. Kc1 {[%clk 0:00:24]}  Be5 {[%clk 0:00:19]} 43. Ra6 {[%clk 0:00:23]}  Rb4 {[%clk 0:00:18]} 44. Kb1 {[%clk 0:00:23]}  Rd4 {[%clk 0:00:05]} 45. Ka2 {[%clk 0:00:21]}  g4 {[%clk 0:00:05]} 46. hxg4 {[%clk 0:00:20]}  Rxg4 {[%clk 0:00:06]} 47. f3 {[%clk 0:00:20]}  Rd4 {[%clk 0:00:06]} 48. Ka3 {[%clk 0:00:19]}  Bd6+ {[%clk 0:00:06]} 49. Ka2 {[%clk 0:00:19]}  Be5 {[%clk 0:00:06]} 50. Ra7+ {[%clk 0:00:19]}  Kg6 {[%clk 0:00:06]} 51. Rb7 {[%clk 0:00:18]}  Kf5 {[%clk 0:00:02]} 52. Rh7 {[%clk 0:00:18]}  Bg3 {[%clk 0:00:02]} 53. Rh5+ {[%clk 0:00:17]}  Kg6 {[%clk 0:00:02]} 54. Ra5 {[%clk 0:00:18]}  Be5 {[%clk 0:00:03]} 55. Re4 {[%clk 0:00:16]}  Rd2 {[%clk 0:00:02]} 56. Rg4+ {[%clk 0:00:15]}  Kf5 {[%clk 0:00:03]} 57. Rb5 {[%clk 0:00:15]}  Rf2 {[%clk 0:00:02]} 58. Ka3 {[%clk 0:00:15]}  h3 {[%clk 0:00:02]} 59. gxh3 {[%clk 0:00:15]}  Rxf3+ {[%clk 0:00:02]} 60. Kxa4 {[%clk 0:00:15]}  Rxh3 {[%clk 0:00:03]} 61. Rg8 {[%clk 0:00:15]}  Rh1 {[%clk 0:00:03]} 62. Ka5 {[%clk 0:00:15]}  Rb1 {[%clk 0:00:03]} 63. b4 {[%clk 0:00:15]}  Ke4 {[%clk 0:00:02]} 64. Kb6 {[%clk 0:00:15]}  Bd4+ {[%clk 0:00:03]} 65. Kb7 {[%clk 0:00:14]}  Rc1 {[%clk 0:00:03]} 66. Re8+ {[%clk 0:00:14]}  Be5 {[%clk 0:00:03]} 67. Rb6 {[%clk 0:00:13]}  Rd1 {[%clk 0:00:03]} 68. Rxf6 {[%clk 0:00:13]}  Rd7+ {[%clk 0:00:03]} 69. Kc6 {[%clk 0:00:13]}  Ra7 {[%clk 0:00:02]} 70. Rfe6 {[%clk 0:00:12]}  Ra6+ {[%clk 0:00:02]} 71. Kb7 {[%clk 0:00:12]}  Rxe6 {[%clk 0:00:02]} 72. Rxe6 {[%clk 0:00:13]}  Kd5 {[%clk 0:00:03]} 73. Rxe5+ {[%clk 0:00:14]}  Kxe5 {[%clk 0:00:04]} 74. b5 {[%clk 0:00:15]} 1-0


[Site "https://www.chess.com"]